[Event "Titled Tuesday Blitz May 03 Late 2022"]
[White "Mirza, Diana"]
[Black "Aggelis, Nikolaos"]
[WhiteFideId "2503999"]
[BlackFideId "4213220"]
[WhiteElo "1813"]
[BlackElo "2154"]
[Result "0-1"]
[Round "01"]
[TimeControl "180+1"]
[Date "2022.05.03"]
[WhiteClock "0:00:04"]
[BlackClock "0:00:59"]

1. b4 {[%clk 0:02:57]}  Nf6 {[%clk 0:02:56]} 2. Bb2 {[%clk 0:02:56]}  d5 {[%clk 0:02:56]} 3. e3 {[%clk 0:02:52]}  g6 {[%clk 0:02:56]} 4. c4 {[%clk 0:02:43]}  Bg7 {[%clk 0:02:48]} 5. cxd5 {[%clk 0:02:38]}  O-O {[%clk 0:02:48]} 6. Nf3 {[%clk 0:02:36]}  a5 {[%clk 0:02:37]} 7. b5 {[%clk 0:02:31]}  Qxd5 {[%clk 0:02:29]} 8. a4 {[%clk 0:02:24]}  Rd8 {[%clk 0:02:21]} 9. Nc3 {[%clk 0:02:20]}  Qf5 {[%clk 0:02:17]} 10. Nd4 {[%clk 0:02:07]}  Qd7 {[%clk 0:02:15]} 11. Bc4 {[%clk 0:02:03]}  c5 {[%clk 0:02:08]} 12. Nb3 {[%clk 0:01:54]}  b6 {[%clk 0:02:05]} 13. O-O {[%clk 0:01:51]}  Bb7 {[%clk 0:02:04]} 14. Qe2 {[%clk 0:01:38]}  Qf5 {[%clk 0:01:58]} 15. d4 {[%clk 0:01:27]}  Nbd7 {[%clk 0:01:56]} 16. Rac1 {[%clk 0:00:59]}  Rac8 {[%clk 0:01:55]} 17. dxc5 {[%clk 0:00:57]}  Nxc5 {[%clk 0:01:54]} 18. Nxc5 {[%clk 0:00:56]}  Qxc5 {[%clk 0:01:45]} 19. Bb3 {[%clk 0:00:51]}  Qb4 {[%clk 0:01:40]} 20. Ba2 {[%clk 0:00:37]}  Ne4 {[%clk 0:01:38]} 21. Nxe4 {[%clk 0:00:10]}  Bxb2 {[%clk 0:01:36]} 22. Rxc8 {[%clk 0:00:06]}  Rxc8 {[%clk 0:01:36]} 23. Ng3 {[%clk 0:00:04]}  Bf6 {[%clk 0:01:33]} 24. h3 {[%clk 0:00:03]}  Qxa4 {[%clk 0:01:33]} 25. Bb1 {[%clk 0:00:03]}  Bd5 {[%clk 0:01:23]} 26. Bd3 {[%clk 0:00:03]}  Qa2 {[%clk 0:01:20]} 27. Qxa2 {[%clk 0:00:02]}  Bxa2 {[%clk 0:01:21]} 28. Ne4 {[%clk 0:00:03]}  Bb2 {[%clk 0:01:18]} 29. Re1 {[%clk 0:00:02]}  a4 {[%clk 0:01:18]} 30. Re2 {[%clk 0:00:02]}  a3 {[%clk 0:01:18]} 31. Nd2 {[%clk 0:00:02]}  Rc1+ {[%clk 0:01:04]} 32. Kh2 {[%clk 0:00:02]}  Bd5 {[%clk 0:01:04]} 33. Nf3 {[%clk 0:00:02]}  Bxf3 {[%clk 0:01:01]} 34. gxf3 {[%clk 0:00:02]}  a2 {[%clk 0:01:02]} 35. Rxb2 {[%clk 0:00:02]}  a1=Q {[%clk 0:01:02]} 36. Rc2 {[%clk 0:00:03]}  Rxc2 {[%clk 0:01:00]} 37. Bxc2 {[%clk 0:00:04]}  Qb2 {[%clk 0:00:59]} 0-1


[Site "https://www.chess.com"]

[Event "Titled Tuesday Blitz May 03 Late 2022"]
[White "Moral Garcia, Serafin"]
[Black "Yuan, Qingyu"]
[WhiteFideId "2201925"]
[BlackFideId "8609772"]
[WhiteElo "2228"]
[BlackElo "2359"]
[Result "1-0"]
[Round "01"]
[TimeControl "180+1"]
[Date "2022.05.03"]
[WhiteClock "0:00:14"]
[BlackClock "0:00:03"]

1. e4 {[%clk 0:02:59]}  c6 {[%clk 0:03:00]} 2. d4 {[%clk 0:02:56]}  d5 {[%clk 0:03:01]} 3. exd5 {[%clk 0:02:56]}  cxd5 {[%clk 0:03:01]} 4. c4 {[%clk 0:02:57]}  Nf6 {[%clk 0:03:01]} 5. Nc3 {[%clk 0:02:58]}  Nc6 {[%clk 0:03:01]} 6. Bg5 {[%clk 0:02:57]}  dxc4 {[%clk 0:03:01]} 7. Bxc4 {[%clk 0:02:57]}  e6 {[%clk 0:03:01]} 8. Nf3 {[%clk 0:02:57]}  Be7 {[%clk 0:03:01]} 9. O-O {[%clk 0:02:55]}  O-O {[%clk 0:03:02]} 10. Re1 {[%clk 0:02:54]}  a6 {[%clk 0:03:02]} 11. Bb3 {[%clk 0:02:54]}  b5 {[%clk 0:02:50]} 12. Qd3 {[%clk 0:02:44]}  Bb7 {[%clk 0:02:46]} 13. a3 {[%clk 0:02:42]}  Rc8 {[%clk 0:02:36]} 14. Bc2 {[%clk 0:02:40]}  g6 {[%clk 0:02:36]} 15. Bh6 {[%clk 0:02:33]}  Re8 {[%clk 0:02:36]} 16. Rad1 {[%clk 0:02:31]}  b4 {[%clk 0:02:36]} 17. Na4 {[%clk 0:02:18]}  Qa5 {[%clk 0:02:14]} 18. Ne5 {[%clk 0:01:58]}  Nxd4 {[%clk 0:01:48]} 19. Qxd4 {[%clk 0:01:25]}  Rxc2 {[%clk 0:01:47]} 20. Nd7 {[%clk 0:01:25]}  Qf5 {[%clk 0:01:13]} 21. Re5 {[%clk 0:01:14]}  Qxf2+ {[%clk 0:00:56]} 22. Qxf2 {[%clk 0:01:12]}  Rxf2 {[%clk 0:00:56]} 23. Kxf2 {[%clk 0:01:07]}  Ng4+ {[%clk 0:00:56]} 24. Kg3 {[%clk 0:00:55]}  Nxh6 {[%clk 0:00:54]} 25. Nac5 {[%clk 0:00:51]}  Nf5+ {[%clk 0:00:50]} 26. Rxf5 {[%clk 0:00:47]}  gxf5 {[%clk 0:00:45]} 27. Nxb7 {[%clk 0:00:47]}  bxa3 {[%clk 0:00:44]} 28. bxa3 {[%clk 0:00:46]}  Rc8 {[%clk 0:00:43]} 29. Rd3 {[%clk 0:00:40]}  f6 {[%clk 0:00:39]} 30. Nd6 {[%clk 0:00:19]}  Rd8 {[%clk 0:00:32]} 31. Nb7 {[%clk 0:00:19]}  Rc8 {[%clk 0:00:31]} 32. Kf3 {[%clk 0:00:19]}  Rc7 {[%clk 0:00:29]} 33. Na5 {[%clk 0:00:17]}  e5 {[%clk 0:00:25]} 34. Ke2 {[%clk 0:00:17]}  Kf7 {[%clk 0:00:26]} 35. Nb6 {[%clk 0:00:16]}  Rc5 {[%clk 0:00:23]} 36. Nac4 {[%clk 0:00:16]}  Rc6 {[%clk 0:00:20]} 37. a4 {[%clk 0:00:15]}  a5 {[%clk 0:00:19]} 38. Rd5 {[%clk 0:00:15]}  Bb4 {[%clk 0:00:16]} 39. Rxe5 {[%clk 0:00:15]}  Rxb6 {[%clk 0:00:13]} 40. Rxf5 {[%clk 0:00:15]}  Re6+ {[%clk 0:00:11]} 41. Kd3 {[%clk 0:00:15]}  Ra6 {[%clk 0:00:11]} 42. Rb5 {[%clk 0:00:14]}  Kg6 {[%clk 0:00:12]} 43. Ke4 {[%clk 0:00:13]}  Re6+ {[%clk 0:00:12]} 44. Kf3 {[%clk 0:00:13]}  Ra6 {[%clk 0:00:12]} 45. g4 {[%clk 0:00:14]}  h6 {[%clk 0:00:12]} 46. h4 {[%clk 0:00:14]}  Ra7 {[%clk 0:00:12]} 47. h5+ {[%clk 0:00:15]}  Kg7 {[%clk 0:00:13]} 48. Kf4 {[%clk 0:00:15]}  Rc7 {[%clk 0:00:05]} 49. Nxa5 {[%clk 0:00:14]}  Bxa5 {[%clk 0:00:04]} 50. Rxa5 {[%clk 0:00:14]}  Rc1 {[%clk 0:00:04]} 51. Ra7+ {[%clk 0:00:14]}  Kg8 {[%clk 0:00:03]} 52. Kf5 {[%clk 0:00:15]}  Rc5+ {[%clk 0:00:04]} 53. Kxf6 {[%clk 0:00:14]}  Rg5 {[%clk 0:00:04]} 54. a5 {[%clk 0:00:14]}  Rxg4 {[%clk 0:00:05]} 55. a6 {[%clk 0:00:14]}  Ra4 {[%clk 0:00:02]} 56. Kg6 {[%clk 0:00:14]}  Kf8 {[%clk 0:00:02]} 57. Kxh6 {[%clk 0:00:14]}  Ra2 {[%clk 0:00:02]} 58. Kh7 {[%clk 0:00:14]}  Ra5 {[%clk 0:00:02]} 59. h6 {[%clk 0:00:15]}  Ra1 {[%clk 0:00:03]} 60. Ra8+ {[%clk 0:00:13]}  Kf7 {[%clk 0:00:03]} 61. a7 {[%clk 0:00:13]}  Ra6 {[%clk 0:00:04]} 62. Rg8 {[%clk 0:00:14]}  Ra5 {[%clk 0:00:01]} 63. a8=Q {[%clk 0:00:12]}  Ra6 {[%clk 0:00:01]} 64. Rb8 {[%clk 0:00:12]}  Rxa8 {[%clk 0:00:01]} 65. Rxa8 {[%clk 0:00:12]}  Kf6 {[%clk 0:00:02]} 66. Rg8 {[%clk 0:00:13]}  Kf7 {[%clk 0:00:03]} 67. Kh8 {[%clk 0:00:13]}  Ke7 {[%clk 0:00:03]} 68. Kg7 {[%clk 0:00:13]}  Kd6 {[%clk 0:00:02]} 69. h7 {[%clk 0:00:13]}  Kc6 {[%clk 0:00:03]} 70. Rf8 {[%clk 0:00:14]} 1-0


[Site "https://www.chess.com"]

[Event "Titled Tuesday Blitz May 03 Late 2022"]
[White "Pinheiro, Iung Alicio de O."]
[Black "Kollars, Dmitrij"]
[WhiteFideId "2104350"]
[BlackFideId "12909572"]
[WhiteElo "2512"]
[BlackElo "2584"]
[Result "0-1"]
[Round "01"]
[TimeControl "180+1"]
[Date "2022.05.03"]
[WhiteClock "0:00:02"]
[BlackClock "0:00:18"]

1. c4 {[%clk 0:02:59]}  e6 {[%clk 0:02:53]} 2. g3 {[%clk 0:02:58]}  d5 {[%clk 0:02:52]} 3. Bg2 {[%clk 0:02:59]}  Nf6 {[%clk 0:02:52]} 4. Nf3 {[%clk 0:03:00]}  d4 {[%clk 0:02:52]} 5. b4 {[%clk 0:02:47]}  a5 {[%clk 0:02:40]} 6. b5 {[%clk 0:02:24]}  c5 {[%clk 0:02:40]} 7. bxc6 {[%clk 0:02:15]}  Nxc6 {[%clk 0:02:39]} 8. O-O {[%clk 0:02:14]}  Bc5 {[%clk 0:02:38]} 9. Ba3 {[%clk 0:02:12]}  Nd7 {[%clk 0:02:37]} 10. d3 {[%clk 0:01:48]}  O-O {[%clk 0:02:37]} 11. Nfd2 {[%clk 0:01:38]}  Qe7 {[%clk 0:02:27]} 12. Bxc5 {[%clk 0:01:33]}  Nxc5 {[%clk 0:02:28]} 13. Ne4 {[%clk 0:01:22]}  Na6 {[%clk 0:02:25]} 14. Qc1 {[%clk 0:01:17]}  Bd7 {[%clk 0:02:19]} 15. Na3 {[%clk 0:01:16]}  f5 {[%clk 0:02:04]} 16. Ng5 {[%clk 0:01:08]}  Nc5 {[%clk 0:02:01]} 17. Nb5 {[%clk 0:01:07]}  h6 {[%clk 0:01:44]} 18. Nf3 {[%clk 0:01:04]}  e5 {[%clk 0:01:40]} 19. Nh4 {[%clk 0:01:02]}  Kh7 {[%clk 0:01:14]} 20. Nc7 {[%clk 0:00:50]}  Rac8 {[%clk 0:01:11]} 21. Nd5 {[%clk 0:00:50]}  Qd6 {[%clk 0:01:12]} 22. Rb1 {[%clk 0:00:33]}  Be6 {[%clk 0:01:12]} 23. g4 {[%clk 0:00:28]}  fxg4 {[%clk 0:01:07]} 24. Rb5 {[%clk 0:00:23]}  g5 {[%clk 0:00:54]} 25. Rxc5 {[%clk 0:00:23]}  Qxc5 {[%clk 0:00:55]} 26. Be4+ {[%clk 0:00:23]}  Kg7 {[%clk 0:00:54]} 27. Ng6 {[%clk 0:00:22]}  Rf5 {[%clk 0:00:46]} 28. f3 {[%clk 0:00:17]}  gxf3 {[%clk 0:00:43]} 29. Rxf3 {[%clk 0:00:14]}  Rxf3 {[%clk 0:00:42]} 30. exf3 {[%clk 0:00:15]}  Bf7 {[%clk 0:00:40]} 31. h4 {[%clk 0:00:04]}  Bxg6 {[%clk 0:00:40]} 32. hxg5 {[%clk 0:00:04]}  h5 {[%clk 0:00:35]} 33. Bxg6 {[%clk 0:00:02]}  Kxg6 {[%clk 0:00:36]} 34. f4 {[%clk 0:00:03]}  Rf8 {[%clk 0:00:30]} 35. Qe1 {[%clk 0:00:03]}  Qd6 {[%clk 0:00:19]} 36. Qe4+ {[%clk 0:00:03]}  Rf5 {[%clk 0:00:19]} 37. c5 {[%clk 0:00:02]}  Qe6 {[%clk 0:00:18]} 0-1


[Site "https://www.chess.com"]

[Event "Titled Tuesday Blitz May 03 Late 2022"]
[White "Prohorov, Olexandr"]
[Black "Drygalov, Sergey"]
[WhiteFideId "14105578"]
[BlackFideId "24171743"]
[WhiteElo "1993"]
[BlackElo "2514"]
[Result "0-1"]
[Round "01"]
[TimeControl "180+1"]
[Date "2022.05.03"]
[WhiteClock "0:00:14"]
[BlackClock "0:00:16"]

1. Nf3 {[%clk 0:02:57]}  d5 {[%clk 0:02:59]} 2. d4 {[%clk 0:02:55]}  Nf6 {[%clk 0:02:59]} 3. c4 {[%clk 0:02:56]}  c6 {[%clk 0:03:00]} 4. cxd5 {[%clk 0:02:56]}  cxd5 {[%clk 0:03:01]} 5. Nc3 {[%clk 0:02:56]}  Nc6 {[%clk 0:03:01]} 6. Bf4 {[%clk 0:02:57]}  a6 {[%clk 0:03:00]} 7. e3 {[%clk 0:02:56]}  Bg4 {[%clk 0:03:01]} 8. Qb3 {[%clk 0:02:54]}  Ra7 {[%clk 0:03:01]} 9. Ne5 {[%clk 0:02:52]}  e6 {[%clk 0:02:53]} 10. Rc1 {[%clk 0:02:37]}  Nxe5 {[%clk 0:02:41]} 11. Bxe5 {[%clk 0:02:36]}  Nd7 {[%clk 0:02:42]} 12. Bg3 {[%clk 0:02:35]}  Be7 {[%clk 0:02:40]} 13. Be2 {[%clk 0:02:35]}  Bxe2 {[%clk 0:02:38]} 14. Nxe2 {[%clk 0:02:34]}  O-O {[%clk 0:02:38]} 15. O-O {[%clk 0:02:34]}  b5 {[%clk 0:02:33]} 16. Nf4 {[%clk 0:02:31]}  Nb6 {[%clk 0:02:33]} 17. Nd3 {[%clk 0:02:30]}  Nc4 {[%clk 0:02:33]} 18. Qc3 {[%clk 0:02:25]}  Bd6 {[%clk 0:01:49]} 19. b3 {[%clk 0:02:21]}  Bxg3 {[%clk 0:01:49]} 20. hxg3 {[%clk 0:02:21]}  Nd6 {[%clk 0:01:49]} 21. Rc2 {[%clk 0:02:15]}  h5 {[%clk 0:01:36]} 22. Rfc1 {[%clk 0:02:11]}  h4 {[%clk 0:01:36]} 23. gxh4 {[%clk 0:01:56]}  Qxh4 {[%clk 0:01:37]} 24. Qc5 {[%clk 0:01:57]}  Qe7 {[%clk 0:01:20]} 25. Ne5 {[%clk 0:01:51]}  Rb7 {[%clk 0:01:16]} 26. Nc6 {[%clk 0:01:39]}  Qc7 {[%clk 0:01:05]} 27. Ne5 {[%clk 0:01:34]}  Qxc5 {[%clk 0:01:05]} 28. Rxc5 {[%clk 0:01:29]}  a5 {[%clk 0:01:04]} 29. Rc6 {[%clk 0:01:29]}  Ne4 {[%clk 0:01:04]} 30. f3 {[%clk 0:01:26]}  Ng3 {[%clk 0:00:57]} 31. Kf2 {[%clk 0:01:26]}  Nf5 {[%clk 0:00:58]} 32. Rc7 {[%clk 0:01:11]}  Rxc7 {[%clk 0:00:53]} 33. Rxc7 {[%clk 0:01:12]}  a4 {[%clk 0:00:49]} 34. g4 {[%clk 0:01:02]}  axb3 {[%clk 0:00:35]} 35. axb3 {[%clk 0:00:57]}  Nd6 {[%clk 0:00:30]} 36. Ke2 {[%clk 0:00:48]}  Ra8 {[%clk 0:00:25]} 37. Kd3 {[%clk 0:00:43]}  b4 {[%clk 0:00:22]} 38. Rd7 {[%clk 0:00:40]}  Ra6 {[%clk 0:00:20]} 39. Rd8+ {[%clk 0:00:41]}  Kh7 {[%clk 0:00:20]} 40. Rb8 {[%clk 0:00:35]}  f6 {[%clk 0:00:20]} 41. Nd7 {[%clk 0:00:32]}  Kg6 {[%clk 0:00:15]} 42. Rxb4 {[%clk 0:00:31]}  Ra7 {[%clk 0:00:16]} 43. Nc5 {[%clk 0:00:30]}  Kf7 {[%clk 0:00:14]} 44. Rb6 {[%clk 0:00:29]}  Ke7 {[%clk 0:00:15]} 45. Rb8 {[%clk 0:00:26]}  Ra1 {[%clk 0:00:15]} 46. b4 {[%clk 0:00:24]}  Ra3+ {[%clk 0:00:15]} 47. Ke2 {[%clk 0:00:24]}  Nc4 {[%clk 0:00:15]} 48. e4 {[%clk 0:00:24]}  dxe4 {[%clk 0:00:15]} 49. fxe4 {[%clk 0:00:25]}  Re3+ {[%clk 0:00:15]} 50. Kf2 {[%clk 0:00:24]}  Rc3 {[%clk 0:00:15]} 51. b5 {[%clk 0:00:25]}  e5 {[%clk 0:00:15]} 52. d5 {[%clk 0:00:23]}  Nd6 {[%clk 0:00:15]} 53. Rb7+ {[%clk 0:00:23]}  Nxb7 {[%clk 0:00:15]} 54. Nxb7 {[%clk 0:00:23]}  Rb3 {[%clk 0:00:16]} 55. Nc5 {[%clk 0:00:21]}  Rxb5 {[%clk 0:00:16]} 56. Ne6 {[%clk 0:00:21]}  g6 {[%clk 0:00:14]} 57. Ke3 {[%clk 0:00:21]}  Rb3+ {[%clk 0:00:14]} 58. Ke2 {[%clk 0:00:21]}  Kd6 {[%clk 0:00:15]} 59. Nf8 {[%clk 0:00:20]}  Rg3 {[%clk 0:00:15]} 60. Nxg6 {[%clk 0:00:19]}  Rxg4 {[%clk 0:00:16]} 61. Nf8 {[%clk 0:00:14]}  Rxe4+ {[%clk 0:00:16]} 62. Kd3 {[%clk 0:00:14]}  Rd4+ {[%clk 0:00:16]} 63. Ke3 {[%clk 0:00:15]}  f5 {[%clk 0:00:16]} 64. Ng6 {[%clk 0:00:14]}  f4+ {[%clk 0:00:16]} 0-1


[Site "https://www.chess.com"]

[Event "Titled Tuesday Blitz May 03 Late 2022"]
[White "Quesada Perez, Yuniesky"]
[Black "Nozdrachev, Leonid"]
[WhiteFideId "3504409"]
[BlackFideId "24113433"]
[WhiteElo "2622"]
[BlackElo "2242"]
[Result "1-0"]
[Round "01"]
[TimeControl "180+1"]
[Date "2022.05.03"]
[WhiteClock "0:00:36"]
[BlackClock "0:00:02"]

1. e4 {[%clk 0:02:55]}  d6 {[%clk 0:02:58]} 2. d4 {[%clk 0:02:54]}  Nf6 {[%clk 0:02:58]} 3. Nc3 {[%clk 0:02:55]}  e5 {[%clk 0:02:58]} 4. Nf3 {[%clk 0:02:54]}  Nbd7 {[%clk 0:02:58]} 5. Bc4 {[%clk 0:02:53]}  Be7 {[%clk 0:02:59]} 6. O-O {[%clk 0:02:53]}  O-O {[%clk 0:02:59]} 7. a4 {[%clk 0:02:53]}  c6 {[%clk 0:02:59]} 8. h3 {[%clk 0:02:51]}  Qc7 {[%clk 0:02:59]} 9. Re1 {[%clk 0:02:48]}  Re8 {[%clk 0:02:59]} 10. dxe5 {[%clk 0:02:37]}  dxe5 {[%clk 0:02:57]} 11. Ba2 {[%clk 0:02:37]}  Bb4 {[%clk 0:02:52]} 12. Nh4 {[%clk 0:02:34]}  Bxc3 {[%clk 0:02:45]} 13. bxc3 {[%clk 0:02:33]}  Nc5 {[%clk 0:02:44]} 14. Qf3 {[%clk 0:02:29]}  Be6 {[%clk 0:02:36]} 15. Bg5 {[%clk 0:02:23]}  Nfd7 {[%clk 0:02:24]} 16. Nf5 {[%clk 0:02:21]}  Nf8 {[%clk 0:02:13]} 17. Nxg7 {[%clk 0:02:13]}  Bxa2 {[%clk 0:01:49]} 18. Nxe8 {[%clk 0:02:10]}  Rxe8 {[%clk 0:01:46]} 19. Rxa2 {[%clk 0:02:09]}  Nce6 {[%clk 0:01:39]} 20. Bh6 {[%clk 0:02:06]}  Ng6 {[%clk 0:01:35]} 21. Raa1 {[%clk 0:02:05]}  Qe7 {[%clk 0:01:35]} 22. g3 {[%clk 0:02:01]}  Ng5 {[%clk 0:01:26]} 23. Qf5 {[%clk 0:01:57]}  Ne6 {[%clk 0:01:21]} 24. Rad1 {[%clk 0:01:56]}  Nc5 {[%clk 0:01:17]} 25. h4 {[%clk 0:01:49]}  Qe6 {[%clk 0:01:09]} 26. Qg5 {[%clk 0:01:30]}  f6 {[%clk 0:01:07]} 27. Qe3 {[%clk 0:01:28]}  Nxa4 {[%clk 0:01:05]} 28. h5 {[%clk 0:01:23]}  Nh8 {[%clk 0:00:51]} 29. Qxa7 {[%clk 0:01:21]}  Nf7 {[%clk 0:00:47]} 30. Be3 {[%clk 0:01:16]}  Nxc3 {[%clk 0:00:42]} 31. Rd3 {[%clk 0:01:14]}  Nxe4 {[%clk 0:00:31]} 32. Qxb7 {[%clk 0:01:14]}  Nfg5 {[%clk 0:00:26]} 33. Bxg5 {[%clk 0:01:09]}  Nxg5 {[%clk 0:00:27]} 34. Red1 {[%clk 0:01:03]}  e4 {[%clk 0:00:11]} 35. Rd8 {[%clk 0:00:47]}  e3 {[%clk 0:00:05]} 36. Rxe8+ {[%clk 0:00:47]}  Qxe8 {[%clk 0:00:06]} 37. Qb3+ {[%clk 0:00:47]}  Kg7 {[%clk 0:00:05]} 38. Qxe3 {[%clk 0:00:47]}  Qxh5 {[%clk 0:00:04]} 39. Rd7+ {[%clk 0:00:46]}  Kg6 {[%clk 0:00:04]} 40. Qd3+ {[%clk 0:00:46]}  Kh6 {[%clk 0:00:04]} 41. f4 {[%clk 0:00:42]}  Nf3+ {[%clk 0:00:03]} 42. Kf2 {[%clk 0:00:41]}  Qh2+ {[%clk 0:00:01]} 43. Kxf3 {[%clk 0:00:41]}  Qh1+ {[%clk 0:00:01]} 44. Ke2 {[%clk 0:00:39]}  Qg2+ {[%clk 0:00:01]} 45. Kd1 {[%clk 0:00:40]}  Qg1+ {[%clk 0:00:01]} 46. Kd2 {[%clk 0:00:40]}  Qf2+ {[%clk 0:00:01]} 47. Qe2 {[%clk 0:00:38]}  Qxg3 {[%clk 0:00:01]} 48. Rd3 {[%clk 0:00:37]}  Qxf4+ {[%clk 0:00:01]} 49. Qe3 {[%clk 0:00:37]}  Kg5 {[%clk 0:00:01]} 50. Qxf4+ {[%clk 0:00:35]}  Kxf4 {[%clk 0:00:02]} 51. Rh3 {[%clk 0:00:36]}  f5 {[%clk 0:00:01]} 52. Rxh7 {[%clk 0:00:36]}  Kg3 {[%clk 0:00:01]} 53. Rc7 {[%clk 0:00:37]}  f4 {[%clk 0:00:02]} 54. Rxc6 {[%clk 0:00:37]}  f3 {[%clk 0:00:03]} 55. Rf6 {[%clk 0:00:37]}  Kf2 {[%clk 0:00:03]} 56. c4 {[%clk 0:00:38]}  Kg1 {[%clk 0:00:02]} 57. Rxf3 {[%clk 0:00:36]} 1-0


[Site "https://www.chess.com"]

[Event "Titled Tuesday Blitz May 03 Late 2022"]
[White "Redzisz, Michal"]
[Black "Yurovskykh, Oleksandr"]
[WhiteFideId "21816107"]
[BlackFideId "14134020"]
[WhiteElo "2014"]
[BlackElo "2292"]
[Result "0-1"]
[Round "01"]
[TimeControl "180+1"]
[Date "2022.05.03"]
[WhiteClock "0:01:00"]
[BlackClock "0:00:16"]

1. Nf3 {[%clk 0:03:00]}  d5 {[%clk 0:02:57]} 2. b3 {[%clk 0:03:01]}  Bg4 {[%clk 0:02:51]} 3. Bb2 {[%clk 0:03:00]}  Nf6 {[%clk 0:02:51]} 4. g3 {[%clk 0:03:00]}  e6 {[%clk 0:02:51]} 5. Bg2 {[%clk 0:03:01]}  c5 {[%clk 0:02:51]} 6. O-O {[%clk 0:03:01]}  Nc6 {[%clk 0:02:51]} 7. d4 {[%clk 0:03:00]}  Be7 {[%clk 0:02:48]} 8. dxc5 {[%clk 0:02:59]}  Bxc5 {[%clk 0:02:48]} 9. a3 {[%clk 0:03:00]}  O-O {[%clk 0:02:44]} 10. b4 {[%clk 0:03:00]}  Be7 {[%clk 0:02:39]} 11. Nbd2 {[%clk 0:03:01]}  Qc7 {[%clk 0:02:31]} 12. c4 {[%clk 0:02:46]}  Rfd8 {[%clk 0:02:23]} 13. Rc1 {[%clk 0:02:28]}  a6 {[%clk 0:02:23]} 14. cxd5 {[%clk 0:02:15]}  Nxd5 {[%clk 0:02:14]} 15. Qb3 {[%clk 0:02:15]}  Rac8 {[%clk 0:01:44]} 16. h3 {[%clk 0:02:08]}  Bh5 {[%clk 0:01:42]} 17. g4 {[%clk 0:02:05]}  Bg6 {[%clk 0:01:41]} 18. Ne5 {[%clk 0:02:04]}  Qb8 {[%clk 0:01:39]} 19. Nxc6 {[%clk 0:02:03]}  Rxc6 {[%clk 0:01:36]} 20. Rxc6 {[%clk 0:02:03]}  bxc6 {[%clk 0:01:36]} 21. Nf3 {[%clk 0:02:00]}  Qb5 {[%clk 0:01:28]} 22. Nd4 {[%clk 0:01:57]}  Qb6 {[%clk 0:01:17]} 23. Qc4 {[%clk 0:01:37]}  c5 {[%clk 0:01:10]} 24. Nf5 {[%clk 0:01:26]}  Bxf5 {[%clk 0:00:52]} 25. gxf5 {[%clk 0:01:25]}  cxb4 {[%clk 0:00:48]} 26. fxe6 {[%clk 0:01:25]}  fxe6 {[%clk 0:00:47]} 27. Qg4 {[%clk 0:01:13]}  Bf6 {[%clk 0:00:42]} 28. Bxd5 {[%clk 0:01:10]}  exd5 {[%clk 0:00:40]} 29. Bxf6 {[%clk 0:01:09]}  Qxf6 {[%clk 0:00:39]} 30. axb4 {[%clk 0:01:08]}  Qe7 {[%clk 0:00:31]} 31. Rc1 {[%clk 0:01:05]}  Rb8 {[%clk 0:00:27]} 32. Rc8+ {[%clk 0:01:05]}  Rxc8 {[%clk 0:00:22]} 33. Qxc8+ {[%clk 0:01:05]}  Kf7 {[%clk 0:00:21]} 34. Qxa6 {[%clk 0:01:06]}  Qxb4 {[%clk 0:00:20]} 35. Qa7+ {[%clk 0:01:06]}  Qe7 {[%clk 0:00:20]} 36. Qe3 {[%clk 0:01:06]}  Qxe3 {[%clk 0:00:19]} 37. fxe3 {[%clk 0:01:07]}  Ke6 {[%clk 0:00:19]} 38. Kf2 {[%clk 0:01:08]}  Ke5 {[%clk 0:00:20]} 39. Kf3 {[%clk 0:01:08]}  Kf5 {[%clk 0:00:20]} 40. Kg3 {[%clk 0:01:06]}  g5 {[%clk 0:00:20]} 41. Kf3 {[%clk 0:01:03]}  h6 {[%clk 0:00:20]} 42. Kg3 {[%clk 0:01:03]}  h5 {[%clk 0:00:20]} 43. Kf3 {[%clk 0:01:03]}  Ke5 {[%clk 0:00:19]} 44. Kg3 {[%clk 0:01:02]}  Ke4 {[%clk 0:00:19]} 45. Kf2 {[%clk 0:01:03]}  g4 {[%clk 0:00:17]} 46. h4 {[%clk 0:01:02]}  Ke5 {[%clk 0:00:16]} 47. Kg3 {[%clk 0:01:00]}  Kf5 {[%clk 0:00:16]} 48. Kf2 {[%clk 0:01:00]}  Ke4 {[%clk 0:00:17]} 49. Ke1 {[%clk 0:01:00]}  Kxe3 {[%clk 0:00:16]} 0-1


[Site "https://www.chess.com"]